[Event "Titled Tuesday Blitz April 19 Late 2022"]
[White "Vusatiuk, Vladimir"]
[Black "Urazayev, Arystanbek"]
[WhiteFideId "14118610"]
[BlackFideId "13709810"]
[WhiteElo "2157"]
[BlackElo "2422"]
[Result "0-1"]
[Round "05"]
[TimeControl "180+1"]
[Date "2022.04.19"]
[WhiteClock "0:00:03"]
[BlackClock "0:00:04"]

1. d4 {[%clk 0:03:00]}  Nf6 {[%clk 0:02:59]} 2. c4 {[%clk 0:03:00]}  g6 {[%clk 0:02:59]} 3. Nc3 {[%clk 0:03:00]}  Bg7 {[%clk 0:02:59]} 4. e4 {[%clk 0:03:00]}  d6 {[%clk 0:03:00]} 5. h3 {[%clk 0:02:57]}  e5 {[%clk 0:02:57]} 6. dxe5 {[%clk 0:02:57]}  dxe5 {[%clk 0:02:57]} 7. Qxd8+ {[%clk 0:02:57]}  Kxd8 {[%clk 0:02:58]} 8. Nf3 {[%clk 0:02:08]}  Nbd7 {[%clk 0:02:55]} 9. b3 {[%clk 0:01:53]}  c6 {[%clk 0:02:54]} 10. Ba3 {[%clk 0:01:52]}  Bf8 {[%clk 0:02:49]} 11. Bb2 {[%clk 0:01:45]}  h6 {[%clk 0:02:41]} 12. O-O-O {[%clk 0:01:43]}  Kc7 {[%clk 0:02:42]} 13. Nxe5 {[%clk 0:01:35]}  Bg7 {[%clk 0:02:05]} 14. Nxf7 {[%clk 0:01:33]}  Rf8 {[%clk 0:02:04]} 15. Nd6 {[%clk 0:01:30]}  Nh5 {[%clk 0:02:00]} 16. g4 {[%clk 0:01:22]}  Bxc3 {[%clk 0:01:34]} 17. Bxc3 {[%clk 0:01:23]}  Nf4 {[%clk 0:01:35]} 18. Bg7 {[%clk 0:01:10]}  Rg8 {[%clk 0:01:32]} 19. Bxh6 {[%clk 0:01:10]}  Ne6 {[%clk 0:01:30]} 20. e5 {[%clk 0:01:00]}  Nxe5 {[%clk 0:01:23]} 21. Nxc8 {[%clk 0:01:00]}  Raxc8 {[%clk 0:01:23]} 22. Re1 {[%clk 0:00:59]}  Nf7 {[%clk 0:01:24]} 23. Rxe6 {[%clk 0:00:53]}  Nxh6 {[%clk 0:01:24]} 24. Bd3 {[%clk 0:00:50]}  Rcf8 {[%clk 0:01:16]} 25. Rf1 {[%clk 0:00:44]}  Rf3 {[%clk 0:01:13]} 26. Bxg6 {[%clk 0:00:38]}  Rxh3 {[%clk 0:01:13]} 27. g5 {[%clk 0:00:31]}  Ng4 {[%clk 0:01:08]} 28. f4 {[%clk 0:00:30]}  Rh2 {[%clk 0:00:52]} 29. Bf5 {[%clk 0:00:24]}  Rxa2 {[%clk 0:00:27]} 30. Kb1 {[%clk 0:00:24]}  Rg2 {[%clk 0:00:24]} 31. c5 {[%clk 0:00:19]}  Rd8 {[%clk 0:00:19]} 32. Re7+ {[%clk 0:00:16]}  Kb8 {[%clk 0:00:19]} 33. Rd7 {[%clk 0:00:13]}  Re8 {[%clk 0:00:19]} 34. Rfd1 {[%clk 0:00:12]}  a5 {[%clk 0:00:13]} 35. Rd8+ {[%clk 0:00:12]}  Rxd8 {[%clk 0:00:14]} 36. Rxd8+ {[%clk 0:00:13]}  Ka7 {[%clk 0:00:15]} 37. Bxg4 {[%clk 0:00:13]}  Rxg4 {[%clk 0:00:15]} 38. Rf8 {[%clk 0:00:11]}  Ka6 {[%clk 0:00:15]} 39. Rf6 {[%clk 0:00:11]}  Kb5 {[%clk 0:00:15]} 40. g6 {[%clk 0:00:11]}  Kb4 {[%clk 0:00:14]} 41. f5 {[%clk 0:00:11]}  Kxb3 {[%clk 0:00:14]} 42. Kc1 {[%clk 0:00:11]}  a4 {[%clk 0:00:14]} 43. Rf7 {[%clk 0:00:11]}  Kc3 {[%clk 0:00:13]} 44. Kb1 {[%clk 0:00:10]}  b5 {[%clk 0:00:13]} 45. cxb6 {[%clk 0:00:10]}  Kb3 {[%clk 0:00:13]} 46. Kc1 {[%clk 0:00:10]}  Kc3 {[%clk 0:00:13]} 47. Kd1 {[%clk 0:00:10]}  a3 {[%clk 0:00:12]} 48. Ra7 {[%clk 0:00:08]}  a2 {[%clk 0:00:07]} 49. b7 {[%clk 0:00:06]}  Rb4 {[%clk 0:00:03]} 50. g7 {[%clk 0:00:02]}  Rxb7 {[%clk 0:00:01]} 51. Rxa2 {[%clk 0:00:02]}  Rxg7 {[%clk 0:00:02]} 52. Re2 {[%clk 0:00:02]}  Kd3 {[%clk 0:00:02]} 53. Re5 {[%clk 0:00:02]}  Rg1+ {[%clk 0:00:02]} 54. Re1 {[%clk 0:00:01]}  Rg2 {[%clk 0:00:03]} 55. f6 {[%clk 0:00:01]}  Rf2 {[%clk 0:00:04]} 56. Re6 {[%clk 0:00:02]}  Rf1+ {[%clk 0:00:04]} 57. Re1 {[%clk 0:00:02]}  Rxf6 {[%clk 0:00:05]} 58. Rh1 {[%clk 0:00:03]}  Rf3 {[%clk 0:00:05]} 59. Rh8 {[%clk 0:00:03]}  Rf1# {[%clk 0:00:04]} 0-1


[Site "https://www.chess.com"]

[Event "Titled Tuesday Blitz April 19 Late 2022"]
[White "Yoo, Christopher Woojin"]
[Black "Fernandez Hernandez, Gerardo"]
[WhiteFideId "30909694"]
[BlackFideId "2207400"]
[WhiteElo "2105"]
[BlackElo "2156"]
[Result "1-0"]
[Round "05"]
[TimeControl "180+1"]
[Date "2022.04.19"]
[WhiteClock "0:00:32"]
[BlackClock "0:00:01"]

1. e4 {[%clk 0:02:21]}  e6 {[%clk 0:02:59]} 2. d4 {[%clk 0:02:21]}  d5 {[%clk 0:03:00]} 3. Nc3 {[%clk 0:02:21]}  Nc6 {[%clk 0:03:00]} 4. Nf3 {[%clk 0:02:20]}  Nf6 {[%clk 0:02:59]} 5. Bd3 {[%clk 0:02:20]}  Bb4 {[%clk 0:02:58]} 6. Bg5 {[%clk 0:02:17]}  h6 {[%clk 0:02:51]} 7. Bxf6 {[%clk 0:02:15]}  Qxf6 {[%clk 0:02:50]} 8. O-O {[%clk 0:02:16]}  Bxc3 {[%clk 0:02:30]} 9. bxc3 {[%clk 0:02:16]}  O-O {[%clk 0:02:28]} 10. e5 {[%clk 0:02:15]}  Qe7 {[%clk 0:02:27]} 11. Qd2 {[%clk 0:02:12]}  Na5 {[%clk 0:02:25]} 12. Qf4 {[%clk 0:02:12]}  c5 {[%clk 0:02:22]} 13. h4 {[%clk 0:02:11]}  c4 {[%clk 0:02:21]} 14. Be2 {[%clk 0:02:12]}  f6 {[%clk 0:02:10]} 15. exf6 {[%clk 0:02:11]}  Rxf6 {[%clk 0:02:08]} 16. Qg3 {[%clk 0:02:11]}  Bd7 {[%clk 0:02:02]} 17. Ne5 {[%clk 0:02:11]}  Nc6 {[%clk 0:01:59]} 18. Nxd7 {[%clk 0:02:08]}  Qxd7 {[%clk 0:01:56]} 19. Bg4 {[%clk 0:02:08]}  Qf7 {[%clk 0:01:46]} 20. Rae1 {[%clk 0:02:08]}  Re8 {[%clk 0:01:44]} 21. Re2 {[%clk 0:02:08]}  Kh8 {[%clk 0:01:22]} 22. Rfe1 {[%clk 0:02:07]}  Qg6 {[%clk 0:01:12]} 23. Qh3 {[%clk 0:01:59]}  Nd8 {[%clk 0:00:54]} 24. h5 {[%clk 0:01:56]}  Qf7 {[%clk 0:00:45]} 25. Qg3 {[%clk 0:01:54]}  Rf8 {[%clk 0:00:44]} 26. f3 {[%clk 0:01:50]}  Re8 {[%clk 0:00:37]} 27. Re3 {[%clk 0:01:44]}  Qd7 {[%clk 0:00:28]} 28. Qb8 {[%clk 0:01:13]}  Nc6 {[%clk 0:00:24]} 29. Qh2 {[%clk 0:01:12]}  Nd8 {[%clk 0:00:17]} 30. f4 {[%clk 0:01:10]}  Qd6 {[%clk 0:00:14]} 31. g3 {[%clk 0:01:09]}  Qc6 {[%clk 0:00:13]} 32. f5 {[%clk 0:01:08]}  e5 {[%clk 0:00:12]} 33. dxe5 {[%clk 0:01:07]}  Rff8 {[%clk 0:00:10]} 34. e6 {[%clk 0:01:07]}  Qc5 {[%clk 0:00:08]} 35. Qf2 {[%clk 0:01:04]}  Nc6 {[%clk 0:00:06]} 36. R3e2 {[%clk 0:00:48]}  Qd6 {[%clk 0:00:05]} 37. Qf4 {[%clk 0:00:41]}  Qc5+ {[%clk 0:00:04]} 38. Kg2 {[%clk 0:00:41]}  d4 {[%clk 0:00:04]} 39. cxd4 {[%clk 0:00:36]}  Nxd4 {[%clk 0:00:04]} 40. Re5 {[%clk 0:00:36]}  Qb6 {[%clk 0:00:01]} 41. e7 {[%clk 0:00:32]} 1-0


[Site "https://www.chess.com"]

[Event "Titled Tuesday Blitz April 19 Late 2022"]
[White "Zherebtsova, Alexandra"]
[Black "Winkels, Marcel"]
[WhiteFideId "24129518"]
[BlackFideId "1003887"]
[WhiteElo "2025"]
[BlackElo "1900"]
[Result "1-0"]
[Round "05"]
[TimeControl "180+1"]
[Date "2022.04.19"]
[WhiteClock "0:00:08"]
[BlackClock "0:00:17"]

1. d4 {[%clk 0:02:58]}  Nf6 {[%clk 0:02:58]} 2. Nf3 {[%clk 0:02:52]}  e6 {[%clk 0:02:56]} 3. c4 {[%clk 0:02:51]}  c5 {[%clk 0:02:56]} 4. d5 {[%clk 0:02:50]}  exd5 {[%clk 0:02:55]} 5. cxd5 {[%clk 0:02:50]}  d6 {[%clk 0:02:56]} 6. Nc3 {[%clk 0:02:50]}  g6 {[%clk 0:02:55]} 7. Bf4 {[%clk 0:02:50]}  a6 {[%clk 0:02:54]} 8. a4 {[%clk 0:02:49]}  Bg7 {[%clk 0:02:53]} 9. h3 {[%clk 0:02:43]}  O-O {[%clk 0:02:51]} 10. e3 {[%clk 0:02:42]}  Re8 {[%clk 0:02:42]} 11. Nd2 {[%clk 0:02:36]}  Nh5 {[%clk 0:02:33]} 12. Bh2 {[%clk 0:02:34]}  Nd7 {[%clk 0:02:21]} 13. Be2 {[%clk 0:02:19]}  Ne5 {[%clk 0:02:20]} 14. Bxh5 {[%clk 0:02:06]}  gxh5 {[%clk 0:02:18]} 15. O-O {[%clk 0:02:01]}  Nd3 {[%clk 0:02:13]} 16. Qc2 {[%clk 0:01:21]}  Ne5 {[%clk 0:02:00]} 17. Kh1 {[%clk 0:00:56]}  Bd7 {[%clk 0:01:56]} 18. a5 {[%clk 0:00:51]}  Bb5 {[%clk 0:01:47]} 19. Nxb5 {[%clk 0:00:35]}  axb5 {[%clk 0:01:45]} 20. Nb3 {[%clk 0:00:24]}  c4 {[%clk 0:01:30]} 21. Nd4 {[%clk 0:00:22]}  Rxa5 {[%clk 0:01:29]} 22. Rxa5 {[%clk 0:00:21]}  Qxa5 {[%clk 0:01:28]} 23. Qe2 {[%clk 0:00:20]}  Nd3 {[%clk 0:01:25]} 24. Qxh5 {[%clk 0:00:15]}  Ne5 {[%clk 0:01:11]} 25. Qg5 {[%clk 0:00:11]}  Qd8 {[%clk 0:01:08]} 26. Qg3 {[%clk 0:00:10]}  Kh8 {[%clk 0:01:04]} 27. Nxb5 {[%clk 0:00:10]}  Rg8 {[%clk 0:00:59]} 28. Qf4 {[%clk 0:00:10]}  Bf6 {[%clk 0:00:58]} 29. Nd4 {[%clk 0:00:09]}  Bg5 {[%clk 0:00:56]} 30. Qf5 {[%clk 0:00:08]}  Qc8 {[%clk 0:00:54]} 31. Bxe5+ {[%clk 0:00:08]}  dxe5 {[%clk 0:00:52]} 32. Qxe5+ {[%clk 0:00:08]}  f6 {[%clk 0:00:52]} 33. Qe6 {[%clk 0:00:07]}  Re8 {[%clk 0:00:50]} 34. Qxc8 {[%clk 0:00:07]}  Rxc8 {[%clk 0:00:49]} 35. Rc1 {[%clk 0:00:07]}  Bh6 {[%clk 0:00:44]} 36. Rc2 {[%clk 0:00:07]}  Bf8 {[%clk 0:00:43]} 37. e4 {[%clk 0:00:07]}  Bd6 {[%clk 0:00:41]} 38. Nf5 {[%clk 0:00:07]}  Be5 {[%clk 0:00:41]} 39. d6 {[%clk 0:00:07]}  b5 {[%clk 0:00:41]} 40. Rd2 {[%clk 0:00:06]}  b4 {[%clk 0:00:40]} 41. d7 {[%clk 0:00:05]}  Rd8 {[%clk 0:00:39]} 42. Nh6 {[%clk 0:00:05]}  Kg7 {[%clk 0:00:38]} 43. Nf5+ {[%clk 0:00:05]}  Kf7 {[%clk 0:00:37]} 44. Ne3 {[%clk 0:00:05]}  c3 {[%clk 0:00:36]} 45. bxc3 {[%clk 0:00:05]}  bxc3 {[%clk 0:00:36]} 46. Rd5 {[%clk 0:00:05]}  Ke7 {[%clk 0:00:34]} 47. g3 {[%clk 0:00:05]}  Rxd7 {[%clk 0:00:33]} 48. Rxd7+ {[%clk 0:00:05]}  Kxd7 {[%clk 0:00:33]} 49. Kg1 {[%clk 0:00:04]}  Bd4 {[%clk 0:00:33]} 50. Nc2 {[%clk 0:00:04]}  Be5 {[%clk 0:00:33]} 51. Kf1 {[%clk 0:00:04]}  Kc6 {[%clk 0:00:33]} 52. Ke2 {[%clk 0:00:04]}  Kc5 {[%clk 0:00:33]} 53. Kd3 {[%clk 0:00:04]}  h5 {[%clk 0:00:26]} 54. f4 {[%clk 0:00:04]}  Bc7 {[%clk 0:00:23]} 55. Kxc3 {[%clk 0:00:04]}  h4 {[%clk 0:00:23]} 56. gxh4 {[%clk 0:00:04]}  Bxf4 {[%clk 0:00:22]} 57. Kd3 {[%clk 0:00:05]}  Bh6 {[%clk 0:00:21]} 58. Nd4 {[%clk 0:00:05]}  Kd6 {[%clk 0:00:21]} 59. Nf5+ {[%clk 0:00:05]}  Ke5 {[%clk 0:00:21]} 60. Nxh6 {[%clk 0:00:06]}  Kf4 {[%clk 0:00:21]} 61. Nf5 {[%clk 0:00:06]}  Ke5 {[%clk 0:00:14]} 62. h5 {[%clk 0:00:06]}  Ke6 {[%clk 0:00:14]} 63. h6 {[%clk 0:00:06]}  Kf7 {[%clk 0:00:14]} 64. Kd4 {[%clk 0:00:06]}  Kg6 {[%clk 0:00:14]} 65. Kd5 {[%clk 0:00:07]}  Kh7 {[%clk 0:00:13]} 66. Ke6 {[%clk 0:00:07]}  Kg6 {[%clk 0:00:14]} 67. Ke7 {[%clk 0:00:07]}  Kh7 {[%clk 0:00:14]} 68. Kxf6 {[%clk 0:00:07]}  Kh8 {[%clk 0:00:14]} 69. e5 {[%clk 0:00:07]}  Kh7 {[%clk 0:00:14]} 70. e6 {[%clk 0:00:08]}  Kh8 {[%clk 0:00:14]} 71. e7 {[%clk 0:00:07]}  Kh7 {[%clk 0:00:15]} 72. h4 {[%clk 0:00:07]}  Kh8 {[%clk 0:00:16]} 73. e8=Q+ {[%clk 0:00:08]}  Kh7 {[%clk 0:00:17]} 74. Qf7+ {[%clk 0:00:08]}  Kh8 {[%clk 0:00:17]} 75. Qg7# {[%clk 0:00:08]} 1-0


[Site "https://www.chess.com"]

[Event "Titled Tuesday Blitz April 19 Late 2022"]
[White "Zhou, Qiyu"]
[Black "Mohammadian, Mohammad"]
[WhiteFideId "505161"]
[BlackFideId "12566055"]
[WhiteElo "1925"]
[BlackElo "1544"]
[Result "1-0"]
[Round "05"]
[TimeControl "180+1"]
[Date "2022.04.19"]
[WhiteClock "0:01:15"]
[BlackClock "0:00:13"]

1. e4 {[%clk 0:03:00]}  e5 {[%clk 0:02:59]} 2. Nf3 {[%clk 0:03:00]}  Nc6 {[%clk 0:02:58]} 3. Bb5 {[%clk 0:02:59]}  a6 {[%clk 0:02:44]} 4. Ba4 {[%clk 0:02:58]}  Nf6 {[%clk 0:02:43]} 5. O-O {[%clk 0:02:57]}  Be7 {[%clk 0:02:43]} 6. Re1 {[%clk 0:02:53]}  b5 {[%clk 0:02:43]} 7. Bb3 {[%clk 0:02:53]}  d6 {[%clk 0:02:43]} 8. c3 {[%clk 0:02:52]}  Na5 {[%clk 0:02:43]} 9. Bc2 {[%clk 0:02:51]}  c5 {[%clk 0:02:43]} 10. h3 {[%clk 0:02:48]}  Qc7 {[%clk 0:02:43]} 11. d4 {[%clk 0:02:45]}  O-O {[%clk 0:02:42]} 12. d5 {[%clk 0:02:38]}  Bd7 {[%clk 0:02:39]} 13. Nbd2 {[%clk 0:02:37]}  h6 {[%clk 0:02:35]} 14. Nf1 {[%clk 0:02:35]}  Nh7 {[%clk 0:02:35]} 15. Ng3 {[%clk 0:02:30]}  Qd8 {[%clk 0:02:26]} 16. b3 {[%clk 0:02:27]}  Ng5 {[%clk 0:02:21]} 17. Nf5 {[%clk 0:02:20]}  Bxf5 {[%clk 0:02:18]} 18. exf5 {[%clk 0:02:20]}  Nxf3+ {[%clk 0:02:18]} 19. Qxf3 {[%clk 0:02:19]}  Bg5 {[%clk 0:02:18]} 20. Be3 {[%clk 0:02:08]}  Bxe3 {[%clk 0:02:18]} 21. fxe3 {[%clk 0:02:09]}  Qg5 {[%clk 0:02:14]} 22. e4 {[%clk 0:02:03]}  c4 {[%clk 0:02:08]} 23. b4 {[%clk 0:01:57]}  Nb7 {[%clk 0:02:06]} 24. Re3 {[%clk 0:01:47]}  a5 {[%clk 0:02:05]} 25. Qf2 {[%clk 0:01:43]}  axb4 {[%clk 0:02:00]} 26. Rg3 {[%clk 0:01:43]}  Qf6 {[%clk 0:01:53]} 27. cxb4 {[%clk 0:01:40]}  Ra6 {[%clk 0:01:47]} 28. a4 {[%clk 0:01:32]}  bxa4 {[%clk 0:01:38]} 29. Rxa4 {[%clk 0:01:33]}  Rxa4 {[%clk 0:01:36]} 30. Bxa4 {[%clk 0:01:34]}  Ra8 {[%clk 0:01:34]} 31. Bc6 {[%clk 0:01:33]}  Ra1+ {[%clk 0:01:30]} 32. Kh2 {[%clk 0:01:32]}  Nd8 {[%clk 0:01:14]} 33. Bb5 {[%clk 0:01:29]}  Qh4 {[%clk 0:00:59]} 34. Rxg7+ {[%clk 0:01:28]}  Kxg7 {[%clk 0:00:56]} 35. Qxh4 {[%clk 0:01:27]}  Nb7 {[%clk 0:00:50]} 36. f6+ {[%clk 0:01:26]}  Kh7 {[%clk 0:00:38]} 37. Bd7 {[%clk 0:01:20]}  c3 {[%clk 0:00:33]} 38. Bf5+ {[%clk 0:01:17]}  Kg8 {[%clk 0:00:29]} 39. Qxh6 {[%clk 0:01:17]}  c2 {[%clk 0:00:13]} 40. Qg7# {[%clk 0:01:15]} 1-0


[Site "https://www.chess.com"]

[Event "Titled Tuesday Blitz April 19 Late 2022"]
[White "Zivkovic, Nemanja"]
[Black "Wu, Derek"]
[WhiteFideId "942154"]
[BlackFideId "30914558"]
[WhiteElo "2364"]
[BlackElo "2071"]
[Result "0-1"]
[Round "05"]
[TimeControl "180+1"]
[Date "2022.04.19"]
[WhiteClock "0:00:10"]
[BlackClock "0:00:15"]

1. e4 {[%clk 0:02:59]}  c5 {[%clk 0:02:59]} 2. Nf3 {[%clk 0:02:57]}  e6 {[%clk 0:03:00]} 3. c3 {[%clk 0:02:57]}  a6 {[%clk 0:03:00]} 4. d4 {[%clk 0:02:55]}  d5 {[%clk 0:03:00]} 5. e5 {[%clk 0:02:54]}  Bd7 {[%clk 0:03:01]} 6. a3 {[%clk 0:02:52]}  Bb5 {[%clk 0:03:00]} 7. b4 {[%clk 0:02:49]}  Bxf1 {[%clk 0:02:59]} 8. Kxf1 {[%clk 0:02:46]}  cxd4 {[%clk 0:02:58]} 9. cxd4 {[%clk 0:02:43]}  Nc6 {[%clk 0:02:55]} 10. Nc3 {[%clk 0:02:42]}  Rc8 {[%clk 0:02:54]} 11. Ne2 {[%clk 0:02:34]}  Nge7 {[%clk 0:02:51]} 12. Bg5 {[%clk 0:02:27]}  h6 {[%clk 0:02:50]} 13. Bxe7 {[%clk 0:02:26]}  Bxe7 {[%clk 0:02:50]} 14. g3 {[%clk 0:02:27]}  O-O {[%clk 0:02:46]} 15. Qd3 {[%clk 0:02:26]}  a5 {[%clk 0:02:38]} 16. b5 {[%clk 0:02:23]}  Na7 {[%clk 0:02:38]} 17. a4 {[%clk 0:02:23]}  Qc7 {[%clk 0:02:33]} 18. Rc1 {[%clk 0:02:20]}  Qd7 {[%clk 0:02:29]} 19. Kg2 {[%clk 0:02:18]}  Rxc1 {[%clk 0:02:28]} 20. Rxc1 {[%clk 0:02:17]}  Rc8 {[%clk 0:02:27]} 21. Rc2 {[%clk 0:02:07]}  Bb4 {[%clk 0:02:15]} 22. h4 {[%clk 0:02:04]}  Rc7 {[%clk 0:02:01]} 23. h5 {[%clk 0:01:54]}  Nc8 {[%clk 0:01:51]} 24. g4 {[%clk 0:01:47]}  Nb6 {[%clk 0:01:45]} 25. g5 {[%clk 0:01:39]}  Rxc2 {[%clk 0:01:33]} 26. Qxc2 {[%clk 0:01:36]}  Qc8 {[%clk 0:01:31]} 27. Qb1 {[%clk 0:01:31]}  Nxa4 {[%clk 0:01:22]} 28. gxh6 {[%clk 0:01:25]}  gxh6 {[%clk 0:01:22]} 29. Qd3 {[%clk 0:01:12]}  Bf8 {[%clk 0:01:07]} 30. Nh2 {[%clk 0:01:09]}  Bg7 {[%clk 0:00:34]} 31. Ng4 {[%clk 0:01:06]}  Qd8 {[%clk 0:00:23]} 32. Qg3 {[%clk 0:00:59]}  Kh8 {[%clk 0:00:22]} 33. Qa3 {[%clk 0:00:39]}  Qg5 {[%clk 0:00:18]} 34. Kg3 {[%clk 0:00:39]}  Nb6 {[%clk 0:00:13]} 35. Qxa5 {[%clk 0:00:35]}  Nc4 {[%clk 0:00:14]} 36. Qa8+ {[%clk 0:00:29]}  Kh7 {[%clk 0:00:14]} 37. Qxb7 {[%clk 0:00:26]}  Nd2 {[%clk 0:00:15]} 38. Qxf7 {[%clk 0:00:17]}  Ne4+ {[%clk 0:00:15]} 39. Kh3 {[%clk 0:00:17]}  Qd2 {[%clk 0:00:15]} 40. Qg6+ {[%clk 0:00:16]}  Kh8 {[%clk 0:00:16]} 41. Qe8+ {[%clk 0:00:15]}  Kh7 {[%clk 0:00:15]} 42. Qg6+ {[%clk 0:00:16]}  Kh8 {[%clk 0:00:15]} 43. Nf4 {[%clk 0:00:09]}  Qxf4 {[%clk 0:00:15]} 44. Qe8+ {[%clk 0:00:09]}  Kh7 {[%clk 0:00:15]} 45. Qg6+ {[%clk 0:00:10]}  Kh8 {[%clk 0:00:15]} 46. Qe8+ {[%clk 0:00:10]}  Bf8 {[%clk 0:00:14]} 47. Qxe6 {[%clk 0:00:10]}  Ng5+ {[%clk 0:00:15]} 0-1


[Site "https://www.chess.com"]

[Event "Titled Tuesday Blitz April 19 Late 2022"]
[White "Arabidze, Meri"]
[Black "Kanyamarala, Trisha"]
[WhiteFideId "13604040"]
[BlackFideId "45004722"]
[WhiteElo "2335"]
[BlackElo "2079"]
[Result "1-0"]
[Round "06"]
[TimeControl "180+1"]
[Date "2022.04.19"]
[WhiteClock "0:01:38"]
[BlackClock "0:00:03"]

1. Nf3 {[%clk 0:03:00]}  d5 {[%clk 0:02:48]} 2. g3 {[%clk 0:03:00]}  c5 {[%clk 0:02:48]} 3. Bg2 {[%clk 0:03:01]}  Nc6 {[%clk 0:02:48]} 4. O-O {[%clk 0:03:00]}  e6 {[%clk 0:02:48]} 5. d4 {[%clk 0:03:00]}  Nf6 {[%clk 0:02:41]} 6. c4 {[%clk 0:03:00]}  Be7 {[%clk 0:02:40]} 7. cxd5 {[%clk 0:02:59]}  exd5 {[%clk 0:02:40]} 8. Nc3 {[%clk 0:02:57]}  c4 {[%clk 0:02:35]} 9. Ne5 {[%clk 0:02:57]}  O-O {[%clk 0:02:33]} 10. b3 {[%clk 0:02:49]}  cxb3 {[%clk 0:02:12]} 11. axb3 {[%clk 0:02:50]}  Be6 {[%clk 0:02:10]} 12. Nxc6 {[%clk 0:02:43]}  bxc6 {[%clk 0:02:09]} 13. Na4 {[%clk 0:02:44]}  Ne4 {[%clk 0:01:48]} 14. Ba3 {[%clk 0:02:43]}  Bxa3 {[%clk 0:01:36]} 15. Rxa3 {[%clk 0:02:44]}  Qe7 {[%clk 0:01:36]} 16. Ra1 {[%clk 0:02:38]}  Qg5 {[%clk 0:01:20]} 17. Qc1 {[%clk 0:02:31]}  Qxc1 {[%clk 0:01:07]} 18. Rfxc1 {[%clk 0:02:32]}  Rab8 {[%clk 0:01:07]} 19. Bxe4 {[%clk 0:02:21]}  dxe4 {[%clk 0:01:07]} 20. Nc5 {[%clk 0:02:22]}  Bxb3 {[%clk 0:01:05]} 21. Nd7 {[%clk 0:02:22]}  Bd5 {[%clk 0:00:59]} 22. Nxb8 {[%clk 0:02:20]}  Rxb8 {[%clk 0:00:59]} 23. Rxa7 {[%clk 0:02:20]}  h6 {[%clk 0:00:51]} 24. g4 {[%clk 0:02:14]}  Rb2 {[%clk 0:00:47]} 25. e3 {[%clk 0:02:14]}  g5 {[%clk 0:00:45]} 26. h3 {[%clk 0:02:14]}  Kg7 {[%clk 0:00:44]} 27. Kg2 {[%clk 0:02:14]}  Kg6 {[%clk 0:00:42]} 28. Rc7 {[%clk 0:02:11]}  Rd2 {[%clk 0:00:40]} 29. Ra1 {[%clk 0:02:05]}  Rc2 {[%clk 0:00:33]} 30. Ra5 {[%clk 0:02:03]}  Rb2 {[%clk 0:00:29]} 31. Ra8 {[%clk 0:01:58]}  Kg7 {[%clk 0:00:29]} 32. Raa7 {[%clk 0:01:57]}  Rd2 {[%clk 0:00:24]} 33. Re7 {[%clk 0:01:50]}  Rb2 {[%clk 0:00:19]} 34. Rad7 {[%clk 0:01:46]}  Rd2 {[%clk 0:00:18]} 35. Re5 {[%clk 0:01:44]}  Rb2 {[%clk 0:00:18]} 36. Rdxd5 {[%clk 0:01:42]}  cxd5 {[%clk 0:00:17]} 37. Rxd5 {[%clk 0:01:43]}  Rb6 {[%clk 0:00:05]} 38. Re5 {[%clk 0:01:42]}  Re6 {[%clk 0:00:02]} 39. Rxe6 {[%clk 0:01:37]}  fxe6 {[%clk 0:00:03]} 40. f3 {[%clk 0:01:37]}  Kf6 {[%clk 0:00:01]} 41. fxe4 {[%clk 0:01:37]}  Ke7 {[%clk 0:00:01]} 42. Kf3 {[%clk 0:01:37]}  Kd6 {[%clk 0:00:02]} 43. Ke2 {[%clk 0:01:36]}  Kc6 {[%clk 0:00:02]} 44. Kd3 {[%clk 0:01:37]}  Kb5 {[%clk 0:00:03]} 45. d5 {[%clk 0:01:37]}  exd5 {[%clk 0:00:02]} 46. exd5 {[%clk 0:01:37]}  Kc5 {[%clk 0:00:03]} 47. e4 {[%clk 0:01:38]} 1-0


[Site "https://www.chess.com"]

[Event "Titled Tuesday Blitz April 19 Late 2022"]
[White "Babazada, Khazar"]
[Black "Bortnyk, Olexandr"]
[WhiteFideId "13413554"]
[BlackFideId "14120828"]
[WhiteElo "2406"]
[BlackElo "2723"]
[Result "0-1"]
[Round "06"]
[TimeControl "180+1"]
[Date "2022.04.19"]
[WhiteClock "0:00:49"]
[BlackClock "0:00:15"]

1. e4 {[%clk 0:03:00]}  Nf6 {[%clk 0:02:55]} 2. e5 {[%clk 0:03:00]}  Nd5 {[%clk 0:02:55]} 3. Nc3 {[%clk 0:03:00]}  Nb6 {[%clk 0:02:54]} 4. a4 {[%clk 0:02:59]}  a5 {[%clk 0:02:54]} 5. d4 {[%clk 0:02:59]}  d5 {[%clk 0:02:51]} 6. Nf3 {[%clk 0:02:52]}  Bf5 {[%clk 0:02:48]} 7. Bd3 {[%clk 0:02:52]}  Bxd3 {[%clk 0:02:47]} 8. Qxd3 {[%clk 0:02:53]}  e6 {[%clk 0:02:48]} 9. O-O {[%clk 0:02:50]}  Be7 {[%clk 0:02:47]} 10. Ne1 {[%clk 0:02:45]}  Na6 {[%clk 0:02:45]} 11. Qg3 {[%clk 0:02:45]}  Rg8 {[%clk 0:02:40]} 12. Nd3 {[%clk 0:02:33]}  Qd7 {[%clk 0:02:35]} 13. b3 {[%clk 0:02:16]}  O-O-O {[%clk 0:02:31]} 14. Be3 {[%clk 0:02:16]}  g5 {[%clk 0:02:30]} 15. Qg4 {[%clk 0:02:08]}  Kb8 {[%clk 0:02:25]} 16. Qe2 {[%clk 0:02:06]}  f5 {[%clk 0:02:24]} 17. exf6 {[%clk 0:02:06]}  Bxf6 {[%clk 0:02:24]} 18. Qd2 {[%clk 0:02:03]}  Qg7 {[%clk 0:02:07]} 19. Ne2 {[%clk 0:02:02]}  Nc8 {[%clk 0:01:45]} 20. Qxa5 {[%clk 0:01:59]}  Nd6 {[%clk 0:01:45]} 21. Rae1 {[%clk 0:01:54]}  Nf5 {[%clk 0:01:42]} 22. b4 {[%clk 0:01:47]}  Nxd4 {[%clk 0:00:43]} 23. Nxd4 {[%clk 0:01:44]}  Bxd4 {[%clk 0:00:44]} 24. b5 {[%clk 0:01:45]}  Bc3 {[%clk 0:00:42]} 25. Qxc3 {[%clk 0:01:28]}  Qxc3 {[%clk 0:00:39]} 26. bxa6 {[%clk 0:01:29]}  d4 {[%clk 0:00:32]} 27. Bc1 {[%clk 0:01:26]}  Qxc2 {[%clk 0:00:32]} 28. Rd1 {[%clk 0:01:24]}  b6 {[%clk 0:00:26]} 29. a5 {[%clk 0:01:22]}  bxa5 {[%clk 0:00:19]} 30. Ba3 {[%clk 0:01:17]}  Rd5 {[%clk 0:00:19]} 31. Rfe1 {[%clk 0:01:10]}  Ka8 {[%clk 0:00:17]} 32. h3 {[%clk 0:01:09]}  Rb8 {[%clk 0:00:17]} 33. Bc1 {[%clk 0:00:52]}  Rb3 {[%clk 0:00:17]} 34. Rd2 {[%clk 0:00:49]}  Qxd2 {[%clk 0:00:15]} 0-1


[Site "https://www.chess.com"]